fUSD/lending_fUSD_20260612
["ID","MTS","AMOUNT","RATE_DAILY","PERIOD"]
[424877975,1781230233000,-500.0,0.00013904,2]
[424877973,1781230233000,-942.017,0.0001363,2]
[424877972,1781230233000,-500.0,0.0001363,2]
[424877971,1781230233000,-500.0,0.0001363,2]
[424877978,1781230233000,-500.0,0.00014025,2]
[424877987,1781230233000,-383.993,0.00014025,2]
[424877994,1781230233000,-500.0,0.00014025,2]
[424877989,1781230233000,-500.0,0.00014025,2]
[424878006,1781230233000,-500.0,0.00014025,2]
[424878004,1781230233000,-500.0,0.00014025,2]
[424878003,1781230233000,-500.0,0.00014025,2]
[424878002,1781230233000,-343.08863151,0.00014025,2]
[424878001,1781230233000,-500.0,0.00014025,2]
[424877998,1781230233000,-500.0,0.00014025,2]
[424877999,1781230233000,-500.0,0.00014025,2]
[424878000,1781230233000,-387.05378598,0.00014025,2]
[424877988,1781230233000,-116.007,0.00014025,2]
[424877996,1781230233000,-500.0,0.00014025,2]
[424877995,1781230233000,-500.0,0.00014025,2]
[424877993,1781230233000,-500.0,0.00014025,2]
[424878005,1781230233000,-500.0,0.00014025,2]
[424877992,1781230233000,-500.0,0.00014025,2]
[424877991,1781230233000,-500.0,0.00014025,2]
[424877990,1781230233000,-500.0,0.00014025,2]
[424877997,1781230233000,-500.0,0.00014025,2]
[424878021,1781230234000,-500.0,0.00014193,2]
[424878018,1781230234000,-2000.0,0.00014178,2]
[424878015,1781230234000,-2000.0,0.00014094,2]
[424878016,1781230234000,-720.72869571,0.00014094,2]
[424878014,1781230234000,-12790.54527208,0.00014094,2]
[424878010,1781230234000,-1712.86013982,0.00014094,2]
[424878017,1781230234000,-6002.1058832,0.00014137,2]
[424878020,1781230234000,-500.0,0.00014193,2]
[424878009,1781230234000,-306.14678476,0.00013379,2]
[424878008,1781230234000,-817.63148688,0.00014094,2]
[424878007,1781230234000,-336.21909563,0.00014025,2]
[424878013,1781230234000,-1951.87210122,0.00014094,2]
[424878023,1781230234000,-500.0,0.00014193,2]
[424878011,1781230234000,-500.0,0.00014094,2]
[424878025,1781230234000,-500.0,0.00014193,2]
[424878027,1781230234000,-500.0,0.00014193,2]
[424878036,1781230234000,-619.06647472,0.00014194,2]
[424878034,1781230234000,-30918.55858649,0.00014194,2]
[424878035,1781230234000,-11064.22968362,0.00014194,2]
[424878030,1781230234000,-26852.62930409,0.00014194,2]
[424878032,1781230234000,-49946.85355785,0.00014194,2]
[424878033,1781230234000,-1254.41808677,0.00014194,2]
[424878012,1781230234000,-3500.0,0.00014094,2]
[424878026,1781230234000,-500.0,0.00014193,2]
[424878028,1781230234000,-500.0,0.00014193,2]
[424878024,1781230234000,-500.0,0.00014193,2]
[424878031,1781230234000,-9145.08173008,0.00014194,2]
[424878029,1781230234000,-557.82995271,0.00014193,2]
[424878019,1781230234000,-720.72869567,0.00014184,2]
[424878022,1781230234000,-500.0,0.00014193,2]
[424878037,1781230235000,-10000.0,0.00014194,2]
[424878038,1781230236000,-10000.0,0.00014194,2]
[424878039,1781230237000,-10000.0,0.00014194,2]
[424878084,1781230238000,-1332.00926807,0.00014194,2]
[424878083,1781230238000,-735.30399282,0.00014194,2]
[424878086,1781230238000,-3431.39827791,0.00014194,2]
[424878087,1781230238000,-10000.0,0.00014194,2]
[424878088,1781230238000,-954.46368731,0.00014194,2]
[424878085,1781230238000,-455253.44694454,0.00014194,2]
[424878167,1781230239000,-10000.0,0.00014194,2]
[424878301,1781230240000,-3196.5,0.00014194,2]
[424878303,1781230240000,-4800.38403099,0.00014194,2]
[424878414,1781230241000,-3780.55,0.00014194,2]
[424878689,1781230245000,-189.35,0.00013491,2]
[424878690,1781230245000,-9810.65,0.00014094,2]
[424878694,1781230246000,-19085.5692585,0.00014094,2]
[424878692,1781230246000,-20192.40863002,0.00014094,2]
[424878691,1781230246000,-2508.7459,0.00014094,2]
[424878693,1781230246000,-10000.0,0.00014094,2]
[424878701,1781230247000,-2515.49278711,0.00014194,2]
[424878699,1781230247000,-59380.36763803,0.00014094,2]
[424878700,1781230247000,-383572.63748103,0.00014194,2]
[424878698,1781230247000,-10000.0,0.00014094,2]
[424878697,1781230247000,-14443.38237345,0.00014094,2]
[424878711,1781230248000,-10000.0,0.00014194,2]
[424878712,1781230249000,-10000.0,0.00014194,2]
[424878713,1781230253000,-3122.24860579,0.00014094,2]
[424878714,1781230253000,-6877.75139421,0.00014194,2]
[424878715,1781230255000,-10000.0,0.00014194,2]
[424878716,1781230286000,-200.0,0.00013699,2]
[424878717,1781230340000,-201.0,9.989e-05,2]
[424878722,1781230374000,-142.74581483,0.00013705,2]
[424878720,1781230374000,-201.0,9.989e-05,2]
[424878721,1781230374000,-341.25418517,0.00013394,2]
[424878719,1781230374000,-201.0,9.989e-05,2]
[424878723,1781230393000,-99.88418517,0.00013705,2]
[424878724,1781230410000,-162.69,0.00013431,2]
[424878727,1781230410000,-1267.31,0.00013978,2]
[424878726,1781230410000,-152.0,0.00013952,2]
[424878725,1781230410000,-2500.0,0.00013828,2]
[424878728,1781230447000,-1232.69,0.00013978,2]
[424878729,1781230485000,-150.0,0.00013459,2]
[424878730,1781230539000,-150.0,0.00013441,2]
[424878731,1781230591000,-459.0,0.00013948,2]
[424878733,1781230644000,-454.0,0.00013948,2]
[424878734,1781230698000,-219.28,0.00013478,2]
[424878735,1781230752000,-166.66,0.00012729,2]
[424878736,1781230805000,-1969.5,0.00012757,2]
[424878738,1781230825000,-1969.5,0.00012757,2]
[424878739,1781230845000,-1491.64477388,0.00012757,2]
[424878740,1781230865000,-1366.34522612,0.00012757,2]
[424878743,1781231082000,-200.0,0.00012654,2]
[424878744,1781231136000,-200.0,0.00012655,2]
[424878745,1781231190000,-506.0,0.00012757,2]
[424878746,1781231210000,-506.0,0.00012757,2]
[424878747,1781231230000,-24.99,0.00012757,2]
[424878748,1781231283000,-150.01520871,0.00012757,2]
[424878749,1781231302000,-397.2,0.00012757,2]
[424878750,1781231323000,-397.2,0.00012757,2]
[424878751,1781231343000,-500.0,0.00012757,2]
[424878755,1781231363000,-200.0,0.00012856,2]
[424878754,1781231363000,-150.0,0.00012853,2]
[424878759,1781231363000,-1000.0,0.00013106,2]
[424878753,1781231363000,-313.01,0.00012838,2]
[424878757,1781231363000,-166.66,0.00012997,2]
[424878756,1781231363000,-1092.47,0.00012873,2]
[424878758,1781231363000,-162.34,0.00013036,2]
[424878752,1781231363000,-478.14479129,0.00012757,2]
[424878760,1781231363000,-166.66,0.00013265,2]
[424878767,1781231363000,-1100.0,0.000136,4]
[424878763,1781231363000,-335.27,0.00013444,2]
[424878762,1781231363000,-162.34,0.00013362,2]
[424878764,1781231363000,-500.0,0.000135,4]
[424878765,1781231363000,-300.0,0.00013532,2]
[424878766,1781231363000,-166.66,0.00013533,2]
[424878768,1781231363000,-162.34,0.00013688,2]
[424878769,1781231363000,-200.0,0.00013699,2]
[424878770,1781231363000,-1700.0,0.000137,5]
[424878761,1781231363000,-248.77,0.00013305,2]
[424878771,1781231372000,-152.0,0.00013718,2]
[424878773,1781231372000,-186.8,0.00013718,2]
[424878772,1781231372000,-186.8,0.00013718,2]
[424878794,1781231432000,-747.0,0.000139,2]
[424878790,1781231432000,-747.0,0.000139,2]
[424878786,1781231432000,-150.0,0.00013899,2]
[424878785,1781231432000,-719.47426264,0.00013823,2]
[424878782,1781231432000,-166.66,0.00013801,2]
[424878780,1781231432000,-1000.0,0.000138,5]
[424878784,1781231432000,-1621.6112924,0.00013823,2]
[424878775,1781231432000,-300.0,0.00013799,2]
[424878777,1781231432000,-448.19418807,0.000138,2]
[424878783,1781231432000,-14652.28473344,0.00013823,2]
[424878778,1781231432000,-1000.0,0.000138,3]
[424878779,1781231432000,-1000.0,0.000138,4]
[424878776,1781231432000,-551.80581193,0.000138,2]
[424878774,1781231432000,-654.37,0.0001303,2]
[424878795,1781231432000,-383.51993574,0.000139,2]
[424878781,1781231432000,-2300.0,0.000138,5]
[424878793,1781231432000,-747.0,0.000139,2]
[424878789,1781231432000,-204.30292669,0.000139,2]
[424878802,1781231432000,-747.0,0.000139,2]
[424878809,1781231432000,-396.90457793,0.000139,2]
[424878792,1781231432000,-195.1570023,0.000139,2]
[424878808,1781231432000,-350.09542207,0.000139,2]
[424878806,1781231432000,-608.61125341,0.000139,2]
[424878807,1781231432000,-138.38874659,0.000139,2]
[424878797,1781231432000,-747.0,0.000139,2]
[424878801,1781231432000,-747.0,0.000139,2]
[424878800,1781231432000,-747.0,0.000139,2]
[424878805,1781231432000,-747.0,0.000139,2]
[424878804,1781231432000,-747.0,0.000139,2]
[424878799,1781231432000,-747.0,0.000139,2]
[424878798,1781231432000,-747.0,0.000139,2]
[424878796,1781231432000,-363.48006426,0.000139,2]
[424878788,1781231432000,-382.03711996,0.000139,2]
[424878787,1781231432000,-160.65995335,0.000139,2]
[424878791,1781231432000,-551.8429977,0.000139,2]
[424878803,1781231432000,-747.0,0.000139,2]
[424878817,1781231433000,-350.04280328,0.000139,2]
[424878818,1781231433000,-747.0,0.000139,2]
[424878813,1781231433000,-693.69606344,0.000139,2]
[424878816,1781231433000,-396.95719672,0.000139,2]
[424878811,1781231433000,-739.68283145,0.000139,2]
[424878810,1781231433000,-7.31716855,0.000139,2]
[424878814,1781231433000,-4.01429604,0.000139,2]
[424878812,1781231433000,-49.28964052,0.000139,2]
[424878819,1781231433000,-374.69457466,0.000139,2]
[424878832,1781231433000,-284.60163902,0.00013922,2]
[424878825,1781231433000,-531.05929864,0.00013921,2]
[424878822,1781231433000,-754.82584018,0.000139,2]
[424878820,1781231433000,-372.30542534,0.000139,2]
[424878823,1781231433000,-2800.0,0.000139,5]
[424878821,1781231433000,-747.0,0.000139,2]
[424878827,1781231433000,-235741.32789985,0.00013922,2]
[424878829,1781231433000,-506.86497693,0.00013922,2]
[424878840,1781231433000,-449.32932475,0.00013921,2]
[424878834,1781231433000,-4644.43663515,0.00013922,2]
[424878839,1781231433000,-500.0,0.00013921,2]
[424878858,1781231438000,-500.0,0.00013921,2]
[424878857,1781231438000,-500.0,0.00013921,2]
[424878859,1781231438000,-500.0,0.00013921,2]
[424878860,1781231438000,-200592.54524905,0.00013922,2]
[424878867,1781231438000,-2237.93479143,0.00013933,2]
[424878869,1781231438000,-16993.37028843,0.00013943,2]
[424878866,1781231438000,-1060.54665509,0.00013933,2]
[424878865,1781231438000,-628.38564453,0.00013933,2]
[424878856,1781231438000,-500.0,0.00013921,2]
[424878870,1781231438000,-448.0,0.00013948,2]
[424878854,1781231438000,-500.0,0.00013921,2]
[424878861,1781231438000,-2000.0,0.00013923,2]
[424878853,1781231438000,-500.0,0.00013921,2]
[424878852,1781231438000,-500.0,0.00013921,2]
[424878849,1781231438000,-500.0,0.00013921,2]
[424878851,1781231438000,-234.37188071,0.00013921,2]
[424878850,1781231438000,-180.69080252,0.00013921,2]
[424878848,1781231438000,-500.0,0.00013921,2]
[424878844,1781231438000,-1079.40016911,0.00013823,2]
[424878847,1781231438000,-177.01021185,0.00013921,2]
[424878846,1781231438000,-500.0,0.00013921,2]
[424878845,1781231438000,-50.67067525,0.00013921,2]
[424878843,1781231438000,-407.86461,0.00013823,2]
[424878862,1781231438000,-2500.0,0.00013923,2]
[424878855,1781231438000,-500.0,0.00013921,2]
[424878868,1781231438000,-937.00100012,0.00013933,2]
[424878875,1781231438000,-154.60502456,0.0001402,2]
[424878864,1781231438000,-503.41422681,0.00013933,2]
[424878902,1781231438000,-558.31250894,0.00014094,2]
[424878863,1781231438000,-875.8866,0.00013923,2]
[424878892,1781231438000,-377.31691647,0.00014033,2]
[424878887,1781231438000,-600.0,0.00014033,2]
[424878886,1781231438000,-2500.0,0.00014033,2]
[424878890,1781231438000,-2500.0,0.00014033,2]
[424878888,1781231438000,-600.0,0.00014033,2]
[424878885,1781231438000,-2500.0,0.00014033,2]
[424878896,1781231438000,-16993.37028843,0.00014063,2]
[424878898,1781231438000,-166.66,0.00014069,2]
[424878894,1781231438000,-450.0,0.00014047,2]
[424878883,1781231438000,-250.0,0.00014023,2]
[424878900,1781231438000,-1759.74592773,0.00014094,2]
[424878881,1781231438000,-183.781,0.00014023,2]
[424878871,1781231438000,-764.1600855,0.0001399,2]
[424878884,1781231438000,-2500000.0,0.00014023,2]
[424878872,1781231438000,-250.0,0.00014,2]
[424878876,1781231438000,-1065.19817953,0.00014022,5]
[424878874,1781231438000,-162.34,0.00014014,2]
[424878882,1781231438000,-2000.0,0.00014023,2]
[424878873,1781231438000,-346.99871046,0.00014013,2]
[424878880,1781231438000,-2781.295,0.00014023,2]
[424878878,1781231438000,-1066.81128947,0.00014022,5]
[424878879,1781231438000,-1062.62527855,0.00014022,5]
[424878877,1781231438000,-1058.4392676,0.00014022,5]
[424878996,1781231439000,-500.0,0.00014193,2]
[424878973,1781231439000,-500.0,0.00014193,2]
[424878991,1781231439000,-500.0,0.00014193,2]
[424878978,1781231439000,-500.0,0.00014193,2]
[424878971,1781231439000,-500.0,0.00014193,2]
[424878963,1781231439000,-500.0,0.00014193,2]
[424878969,1781231439000,-500.0,0.00014193,2]
[424878965,1781231439000,-500.0,0.00014193,2]
[424878967,1781231439000,-500.0,0.00014193,2]
[424878981,1781231439000,-512.664559,0.00014193,2]
[424878985,1781231439000,-500.0,0.00014193,2]
[424878989,1781231439000,-500.0,0.00014193,2]
[424879007,1781231439000,-541.30595417,0.00014193,2]
[424878994,1781231439000,-500.0,0.00014193,2]
[424878976,1781231439000,-500.0,0.00014193,2]
[424878987,1781231439000,-500.0,0.00014193,2]
[424878998,1781231439000,-500.0,0.00014193,2]
[424879000,1781231439000,-509.90810486,0.00014193,2]
[424879009,1781231439000,-513.58758268,0.00014193,2]
[424879002,1781231439000,-500.0,0.00014193,2]
[424879015,1781231439000,-200.0,0.00014194,2]
[424879004,1781231439000,-500.0,0.00014193,2]
[424879011,1781231439000,-567.54,0.00014193,2]
[424878956,1781231439000,-1887.45,0.00014193,2]
[424878983,1781231439000,-500.0,0.00014193,2]
[424878958,1781231439000,-1887.45,0.00014193,2]
[424879013,1781231439000,-458.0,0.00014194,2]
[424878961,1781231439000,-500.0,0.00014193,2]
[424878904,1781231439000,-1401.20101214,0.00014094,2]
[424878906,1781231439000,-346.99871046,0.00014164,2]
[424878909,1781231439000,-286.06946144,0.00014164,2]
[424878911,1781231439000,-396952.6204675,0.0001417,2]
[424878913,1781231439000,-1062.62527854,0.00014173,5]
[424878917,1781231439000,-500.0,0.00014173,2]
[424878915,1781231439000,-500.0,0.00014173,2]
[424878921,1781231439000,-500.0,0.00014173,2]
[424878919,1781231439000,-500.0,0.00014173,2]
[424878923,1781231439000,-555.64276628,0.00014173,2]
[424878925,1781231439000,-1005359.9490452,0.00014174,2]
[424878954,1781231439000,-1887.45,0.00014193,2]
[424878936,1781231439000,-500.0,0.00014174,2]
[424878927,1781231439000,-153.039076,0.00014174,2]
[424878940,1781231439000,-500.0,0.00014174,2]
[424878934,1781231439000,-500.0,0.00014174,2]
[424878932,1781231439000,-500.0,0.00014174,2]
[424878930,1781231439000,-154.78667,0.00014174,2]
[424878942,1781231439000,-511.922287,0.00014174,2]
[424878944,1781231439000,-9220.8346508,0.00014175,2]
[424878948,1781231439000,-7356.3806936,0.00014178,2]
[424878946,1781231439000,-185338.0524004,0.00014175,2]
[424878952,1781231439000,-1887.45,0.00014193,2]
[424878950,1781231439000,-1887.45,0.00014193,2]
[424878938,1781231439000,-500.0,0.00014174,2]
[424879019,1781231439000,-317.63,0.00014254,2]
[424879129,1781231439000,-350.0,0.00014885,2]
[424879022,1781231439000,-8346.52795115,0.00014255,2]
[424879090,1781231439000,-4977.0,0.00014528,5]
[424879092,1781231439000,-8346.52795115,0.00014578,2]
[424879079,1781231439000,-8346.52795115,0.0001447,2]
[424879094,1781231439000,-317.63,0.0001459,2]
[424879099,1781231439000,-654.37,0.00014659,2]
[424879096,1781231439000,-311.23,0.00014654,2]
[424879107,1781231439000,-268.888565,0.000147,2]
[424879110,1781231439000,-394.236536,0.000147,2]
[424879112,1781231439000,-307.73,0.00014701,2]
[424879114,1781231439000,-317.63,0.00014713,2]
[424879103,1781231439000,-452.24544,0.0001469,2]
[424879076,1781231439000,-184.213892,0.00014463,2]
[424879101,1781231439000,-8346.52795115,0.00014685,2]
[424879135,1781231439000,-8346.52795115,0.000149,2]
[424879122,1781231439000,-1015.88,0.000148,7]
[424879133,1781231439000,-311.23,0.00014898,2]
[424879131,1781231439000,-452.24545,0.0001489,2]
[424879118,1781231439000,-311.23,0.00014783,2]
[424879121,1781231439000,-8346.52795115,0.00014793,2]
[424879125,1781231439000,-317.63,0.00014821,2]
[424879127,1781231439000,-190.36690243,0.00014838,10]
[424879138,1781231439000,-317.63,0.00014919,2]
[424879140,1781231439000,-307.73,0.0001493,2]
[424879017,1781231439000,-1010.0,0.000142,6]
[424879116,1781231439000,-176.688711,0.00014773,2]
[424879087,1781231439000,-3692.0,0.00014528,5]
[424879105,1781231439000,-188.031971,0.000147,2]
[424879085,1781231439000,-311.23,0.00014499,2]
[424879033,1781231439000,-311.23,0.00014299,2]
[424879081,1781231439000,-1092.47,0.00014482,2]
[424879027,1781231439000,-1887.45,0.00014294,2]
[424879024,1781231439000,-2005.94132076,0.00014292,2]
[424879031,1781231439000,-4868.0,0.00014295,5]
[424879029,1781231439000,-1887.45,0.00014294,2]
[424879037,1781231439000,-151.0,0.000143,2]
[424879039,1781231439000,-600.0,0.00014333,2]
[424879042,1781231439000,-600.0,0.00014333,2]
[424879043,1781231439000,-600.0,0.00014333,2]
[424879059,1781231439000,-7072.80924036,0.00014351,2]
[424879045,1781231439000,-2500.0,0.00014333,2]
[424879057,1781231439000,-4728.00267622,0.00014351,2]
[424879035,1781231439000,-158.41,0.000143,2]
[424879048,1781231439000,-2500.0,0.00014333,2]
[424879061,1781231439000,-9569.7558,0.00014351,2]
[424879065,1781231439000,-259.086004,0.00014391,2]
[424879055,1781231439000,-2680.09353434,0.00014351,2]
[424879050,1781231439000,-162.34,0.0001434,2]
[424879052,1781231439000,-1015.56554245,0.00014351,2]
[424879067,1781231439000,-242.384961,0.00014391,2]
[424879070,1781231439000,-55334.1318974,0.000144,2]
[424879072,1781231439000,-307.73,0.00014403,2]
[424879083,1781231439000,-1887.45,0.00014486,2]
[424879063,1781231439000,-8346.52795115,0.00014363,2]
[424879074,1781231439000,-317.63,0.00014444,2]
[424879231,1781231440000,-158.41,0.000162,2]
[424879216,1781231440000,-452.24544,0.0001549,2]
[424879227,1781231440000,-1092.47,0.00016091,2]
[424879207,1781231440000,-452.24545,0.0001529,2]
[424879224,1781231440000,-1500.0,0.00015947,2]
[424879209,1781231440000,-309.84,0.000153,2]
[424879198,1781231440000,-311.23,0.00015185,2]
[424879222,1781231440000,-352.56111881,0.00015875,2]
[424879212,1781231440000,-227.21,0.000153,2]
[424879214,1781231440000,-179.198425,0.00015435,2]
[424879229,1781231440000,-350.0,0.00016118,2]
[424879242,1781231440000,-262.928167,0.00016438,2]
[424879220,1781231440000,-350.0,0.00015832,2]
[424879233,1781231440000,-433.0,0.00016248,2]
[424879237,1781231440000,-633.3,0.00016438,2]
[424879235,1781231440000,-654.37,0.00016287,2]
[424879244,1781231440000,-262.928167,0.00016438,2]
[424879246,1781231440000,-262.928167,0.00016438,2]
[424879250,1781231440000,-262.928167,0.00016438,2]
[424879239,1781231440000,-262.928167,0.00016438,2]
[424879248,1781231440000,-262.928167,0.00016438,2]
[424879252,1781231440000,-262.928167,0.00016438,2]
[424879196,1781231440000,-317.63,0.00015172,2]
[424879218,1781231440000,-452.24545,0.0001569,2]
[424879205,1781231440000,-311.25,0.0001527,2]
[424879142,1781231440000,-350.0,0.0001496,2]
[424879194,1781231440000,-219.28,0.00015163,2]
[424879254,1781231440000,-262.928167,0.00016438,2]
[424879153,1781231440000,-1887.45,0.00014999,2]
[424879148,1781231440000,-1887.45,0.00014999,2]
[424879146,1781231440000,-880.68,0.00014985,2]
[424879144,1781231440000,-875.35,0.00014985,2]
[424879151,1781231440000,-1887.45,0.00014999,2]
[424879159,1781231440000,-216.27,0.00015,2]
[424879155,1781231440000,-1887.45,0.00014999,2]
[424879157,1781231440000,-64548.10287515,0.00015,2]
[424879162,1781231440000,-1339.63,0.00015,2]
[424879164,1781231440000,-558.17,0.00015,2]
[424879166,1781231440000,-334.91,0.00015,2]
[424879177,1781231440000,-255.0,0.00015025,2]
[424879168,1781231440000,-228.41,0.00015,2]
[424879179,1781231440000,-172.462865,0.00015068,2]
[424879181,1781231440000,-452.24544,0.0001509,2]
[424879183,1781231440000,-317.63,0.00015093,2]
[424879173,1781231440000,-311.23,0.00015001,2]
[424879170,1781231440000,-917538.63249451,0.00015,2]
[424879185,1781231440000,-311.23,0.00015096,2]
[424879175,1781231440000,-317.63,0.0001501,2]
[424879188,1781231440000,-420.0,0.00015121,2]
[424879190,1781231440000,-307.73,0.00015123,2]
[424879203,1781231440000,-311.23,0.00015268,2]
[424879201,1781231440000,-317.63,0.00015247,2]
[424879192,1781231440000,-307.75,0.00015148,2]
[424879259,1781231440000,-262.928167,0.00016438,2]
[424879267,1781231440000,-262.928167,0.00016438,2]
[424879261,1781231440000,-262.928167,0.00016438,2]
[424879332,1781231440000,-231.25259069,0.000184,2]
[424879328,1781231440000,-1734.62772924,0.00018139,2]
[424879330,1781231440000,-178.30022,0.00018172,2]
[424879334,1781231440000,-633.3,0.0001841,2]
[424879337,1781231440000,-318.212962,0.00018522,2]
[424879339,1781231440000,-219.28,0.00018532,2]
[424879351,1781231440000,-220.237608,0.00018691,2]
[424879353,1781231440000,-230.898716,0.00018784,2]
[424879355,1781231440000,-197.117944,0.00018952,2]
[424879357,1781231440000,-2000.0,0.00018978,2]
[424879360,1781231440000,-2000.0,0.00018978,2]
[424879323,1781231440000,-12906.53,0.00018,2]
[424879341,1781231440000,-161.435035,0.00018598,2]
[424879348,1781231440000,-1798.80895522,0.00018687,2]
[424879346,1781231440000,-1339.2508469,0.00018681,2]
[424879362,1781231440000,-450.75,0.00018978,2]
[424879366,1781231440000,-1190.93681599,0.00019,2]
[424879256,1781231440000,-262.928167,0.00016438,2]
[424879364,1781231440000,-1390.42631711,0.00019,2]
[424879375,1781231440000,-160.096635,0.00019178,2]
[424879377,1781231440000,-300.0,0.00019186,2]
[424879379,1781231440000,-1865.36488656,0.00019235,2]
[424879369,1781231440000,-376.683989,0.00019047,2]
[424879371,1781231440000,-300.0,0.00019066,2]
[424879343,1781231440000,-160.0,0.00018673,2]
[424879321,1781231440000,-26105.29,0.00018,2]
[424879373,1781231440000,-208.09985,0.00019142,2]
[424879325,1781231440000,-298.04,0.00018,2]
[424879315,1781231440000,-1092.47,0.000177,2]
[424879274,1781231440000,-262.928167,0.00016438,2]
[424879278,1781231440000,-262.928167,0.00016438,2]
[424879265,1781231440000,-262.928167,0.00016438,2]
[424879263,1781231440000,-262.928167,0.00016438,2]
[424879280,1781231440000,-262.92817508,0.00016438,2]
[424879287,1781231440000,-219.28,0.00016847,2]
[424879285,1781231440000,-341.0,0.00016569,2]
[424879269,1781231440000,-262.928167,0.00016438,2]
[424879283,1781231440000,-1555.5,0.00016495,2]
[424879271,1781231440000,-262.928167,0.00016438,2]
[424879290,1781231440000,-250.0,0.00016857,2]
[424879276,1781231440000,-262.928167,0.00016438,2]
[424879301,1781231440000,-628.38564448,0.00017498,2]
[424879298,1781231440000,-392.260485,0.00017307,2]
[424879319,1781231440000,-313.01,0.00017974,2]
[424879317,1781231440000,-654.37,0.00017916,2]
[424879312,1781231440000,-1672.7364795,0.00017591,2]
[424879296,1781231440000,-924.64983228,0.00017233,2]
[424879310,1781231440000,-1922.56,0.00017572,2]
[424879294,1781231440000,-500.0,0.00017068,2]
[424879292,1781231440000,-1613.0535,0.00017043,2]
[424879305,1781231440000,-6796.99,0.00017572,2]
[424879303,1781231440000,-590.0,0.00017554,2]
[424879307,1781231440000,-1036.99,0.00017572,2]
[424879432,1781231441000,-1887.45,0.00019999,2]
[424879434,1781231441000,-171.219995,0.00019999,2]
[424879427,1781231441000,-500.0,0.000199,7]
[424879439,1781231441000,-199325.0,0.0002,2]
[424879448,1781231441000,-1502.73793738,0.0002,2]
[424879442,1781231441000,-85894.0,0.0002,2]
[424879437,1781231441000,-675.0,0.0002,2]
[424879446,1781231441000,-23194.59737936,0.0002,20]
[424879458,1781231441000,-464.737018,0.0002,2]
[424879444,1781231441000,-1495.94238978,0.0002,5]
[424879453,1781231441000,-227.0,0.0002,2]
[424879455,1781231441000,-465.0,0.0002,2]
[424879477,1781231441000,-175.0,0.0002,2]
[424879470,1781231441000,-504.0,0.0002,2]
[424879473,1781231441000,-907.0,0.0002,2]
[424879430,1781231441000,-1887.45,0.00019999,2]
[424879450,1781231441000,-214.11,0.0002,2]
[424879425,1781231441000,-1934.38338736,0.00019783,2]
[424879404,1781231441000,-523.08,0.0001944,2]
[424879422,1781231441000,-298.8272559,0.00019695,2]
[424879462,1781231441000,-252.0,0.0002,2]
[424879382,1781231441000,-250.0,0.00019287,2]
[424879384,1781231441000,-158.41,0.000193,2]
[424879386,1781231441000,-1092.47,0.0001931,2]
[424879388,1781231441000,-22422.43006691,0.00019339,7]
[424879400,1781231441000,-215.99183634,0.000194,7]
[424879402,1781231441000,-2000.0,0.0001944,2]
[424879407,1781231441000,-150.0,0.00019455,2]
[424879390,1781231441000,-150.99,0.00019339,2]
[424879393,1781231441000,-8224.61,0.00019339,2]
[424879395,1781231441000,-999.99,0.00019339,2]
[424879409,1781231441000,-346.99871046,0.0001949,2]
[424879397,1781231441000,-296.06,0.00019339,2]
[424879411,1781231441000,-1887.45,0.00019499,2]
[424879416,1781231441000,-236154.37953242,0.000195,2]